[Event "RUS-ch Rapid 2021"]
[Site "Sochi"]
[Date "2021.10.12"]
[Round "5.20"]
[White "Yatzenko, Anton"]
[Black "Rozum, Ivan"]
[Result "0-1"]
[ECO "A48"]
[WhiteElo "2370"]
[BlackElo "2529"]
[Annotator "ChessBase"]
[PlyCount "84"]
[EventDate "2021.10.12"]
[EventType "swiss"]
[EventCountry "RUS"]
[SourceTitle "playchess.com"]
[Source "ChessBase"]
[SourceQuality "1"]
[TimeControl "900+10"]

1. d4 {[%emt 0:00:00]} Nf6 {[%emt 0:00:00]} 2. Nf3 {[%emt 0:00:00]} g6 {
[%emt 0:00:00]} 3. Bg5 {[%emt 0:00:00]} Bg7 {[%emt 0:00:00]} 4. Nbd2 {[%emt 0:
00:00]} O-O {[%emt 0:00:00]} 5. c3 {[%emt 0:00:25]} c5 {[%emt 0:00:50]} 6. Bxf6
{[%emt 0:00:42]} Bxf6 {[%emt 0:01:20]} 7. Ne4 {[%emt 0:00:00]} cxd4 {[%emt 0:
00:42]} 8. Nxf6+ {[%emt 0:00:04]} exf6 {[%emt 0:00:00]} 9. Nxd4 {[%emt 0:00:11]
} d5 {[%emt 0:00:09]} 10. g3 {[%emt 0:00:30]} Nc6 {[%emt 0:01:08]} 11. Bg2 {
[%emt 0:00:13]} Bg4 {[%emt 0:00:21]} 12. h3 {[%emt 0:01:48]} Be6 {[%emt 0:00:
00]} 13. O-O {[%emt 0:00:14]} Qd7 {[%emt 0:00:15]} 14. Nxe6 {[%emt 0:01:04]}
fxe6 {[%emt 0:00:05]} 15. Qa4 {[%emt 0:00:35]} Rfd8 {[%emt 0:00:08]} 16. Rad1 {
[%emt 0:00:06]} a6 {[%emt 0:00:26]} 17. c4 {[%emt 0:02:15]} b5 {[%emt 0:02:44]}
18. cxb5 {[%emt 0:02:20]} axb5 {[%emt 0:00:00]} 19. Qb3 {[%emt 0:00:03]} Ne5 {
[%emt 0:00:54]} 20. a3 {[%emt 0:01:06]} Rac8 {[%emt 0:00:06]} 21. Kh2 {[%emt 0:
00:30]} Kg7 {[%emt 0:00:13]} 22. Rd4 {[%emt 0:00:28]} Rc4 {[%emt 0:00:07]} 23.
Rfd1 {[%emt 0:00:11]} Rdc8 {[%emt 0:00:30]} 24. R4d2 {[%emt 0:01:44]} Qa7 {
[%emt 0:00:42]} 25. f4 {[%emt 0:00:29]} Nc6 {[%emt 0:00:20]} 26. e4 {[%emt 0:
00:12]} Na5 {[%emt 0:00:30]} 27. Qf3 {[%emt 0:00:39]} d4 {[%emt 0:00:08]} 28.
e5 {[%emt 0:00:29]} fxe5 {[%emt 0:00:38]} 29. fxe5 {[%emt 0:00:00]} Rf8 {
[%emt 0:00:03]} 30. Qg4 {[%emt 0:00:41]} Nb3 {[%emt 0:01:20]} 31. Rd3 {[%emt 0:
00:00]} h5 {[%emt 0:00:05]} 32. Qg5 {[%emt 0:01:40]} Rc2 {[%emt 0:00:55]} 33.
Kg1 {[%emt 0:00:46]} Rff2 {[%emt 0:00:52]} 34. Be4 {[%emt 0:00:04]} Qf7 {
[%emt 0:00:03]} 35. Rf3 {[%emt 0:00:57]} Rxf3 {[%emt 0:01:57]} 36. Bxc2 {
[%emt 0:00:00]} Nc5 {[%emt 0:00:08]} 37. b4 {[%emt 0:00:35]} d3 {[%emt 0:00:08]
} 38. bxc5 {[%emt 0:00:19]} dxc2 {[%emt 0:00:00]} 39. Rc1 {[%emt 0:00:00]} Qd7
{[%emt 0:00:29]} 40. Kg2 {[%emt 0:00:16]} Qd5 {[%emt 0:00:21]} 41. Kg1 {
[%emt 0:00:12]} Qxc5+ {[%emt 0:00:29]} 42. Kh1 {[%emt 0:00:01]} Rf2 {[%emt 0:
00:26]} 0-1

[Event "RUS-ch Rapid 2021"]
[Site "Sochi"]
[Date "2021.10.12"]
[Round "5.21"]
[White "Khegay, Dmitriy"]
[Black "Pershin, Denis"]
[Result "1-0"]
[ECO "D02"]
[WhiteElo "2521"]
[BlackElo "2388"]
[Annotator "ChessBase"]
[PlyCount "77"]
[EventDate "2021.10.12"]
[EventType "swiss"]
[EventCountry "RUS"]
[SourceTitle "playchess.com"]
[Source "ChessBase"]
[SourceQuality "1"]
[TimeControl "900+10"]

1. d4 {[%emt 0:01:53]} d5 {[%emt 0:00:04]} 2. Bf4 {[%emt 0:00:10]} Nf6 {
[%emt 0:00:06]} 3. e3 {[%emt 0:00:00]} e6 {[%emt 0:00:03]} 4. Nf3 {[%emt 0:00:
00]} c5 {[%emt 0:00:07]} 5. Nbd2 {[%emt 0:00:00]} Nc6 {[%emt 0:00:00]} 6. c3 {
[%emt 0:00:05]} Nh5 {[%emt 0:00:01]} 7. Bg5 {[%emt 0:00:01]} Qb6 {[%emt 0:00:
07]} 8. dxc5 {[%emt 0:00:06]} Bxc5 {[%emt 0:00:00]} 9. b4 {[%emt 0:00:01]} Be7
{[%emt 0:00:07]} 10. b5 {[%emt 0:00:23]} h6 {[%emt 0:00:04]} 11. Bh4 {[%emt 0:
00:33]} g5 {[%emt 0:00:00]} 12. bxc6 {[%emt 0:00:05]} gxh4 {[%emt 0:00:00]} 13.
Rb1 {[%emt 0:00:02]} Qc7 {[%emt 0:00:10]} 14. cxb7 {[%emt 0:00:01]} Bxb7 {
[%emt 0:00:05]} 15. Nd4 {[%emt 0:01:46]} Nf6 {[%emt 0:00:22]} 16. Qb3 {[%emt 0:
00:03]} Rb8 {[%emt 0:01:12]} 17. Nc6 {[%emt 0:04:16]} O-O {[%emt 0:02:17]} 18.
Nxb8 {[%emt 0:00:00]} Rxb8 {[%emt 0:00:03]} 19. Ba6 {[%emt 0:00:02]} Nd7 {
[%emt 0:00:05]} 20. Bxb7 {[%emt 0:00:02]} Nc5 {[%emt 0:00:00]} 21. Qc2 {
[%emt 0:00:06]} Nxb7 {[%emt 0:00:15]} 22. O-O {[%emt 0:00:43]} Rc8 {[%emt 0:00:
03]} 23. Qa4 {[%emt 0:00:37]} Nd6 {[%emt 0:00:10]} 24. Rfc1 {[%emt 0:00:33]}
Bf6 {[%emt 0:00:03]} 25. Qf4 {[%emt 0:00:55]} Kg7 {[%emt 0:00:42]} 26. c4 {
[%emt 0:00:35]} Bg5 {[%emt 0:01:18]} 27. Qd4+ {[%emt 0:00:00]} Bf6 {[%emt 0:00:
17]} 28. Qg4+ {[%emt 0:00:13]} Kh7 {[%emt 0:00:03]} 29. c5 {[%emt 0:03:04]} Nf5
{[%emt 0:00:20]} 30. e4 {[%emt 0:00:00]} Rg8 {[%emt 0:00:14]} 31. Qf3 {[%emt 0:
00:00]} h3 {[%emt 0:03:42]} 32. g3 {[%emt 0:01:31]} dxe4 {[%emt 0:00:28]} 33.
Nxe4 {[%emt 0:00:00]} Bd4 {[%emt 0:00:03]} 34. Nd6 {[%emt 0:01:44]} Nxd6 {
[%emt 0:01:11]} 35. cxd6 {[%emt 0:00:00]} Qxd6 {[%emt 0:00:01]} 36. Rb7 {
[%emt 0:00:28]} Rg5 {[%emt 0:03:37]} 37. Rxf7+ {[%emt 0:00:02]} Kg6 {[%emt 0:
00:00]} 38. Rf4 {[%emt 0:00:28]} h5 {[%emt 0:02:58]} 39. Qe4+ {[%emt 0:00:11]}
1-0

[Event "RUS-ch Rapid 2021"]
[Site "Sochi"]
[Date "2021.10.12"]
[Round "5.22"]
[White "Gogolev, Artem"]
[Black "Potapov, Pavel"]
[Result "1/2-1/2"]
[ECO "A88"]
[WhiteElo "2296"]
[BlackElo "2481"]
[Annotator "ChessBase"]
[PlyCount "81"]
[EventDate "2021.10.12"]
[EventType "swiss"]
[EventCountry "RUS"]
[SourceTitle "playchess.com"]
[Source "ChessBase"]
[SourceQuality "1"]
[TimeControl "900+10"]

1. d4 {[%emt 0:00:00]} f5 {[%emt 0:00:00]} 2. c4 {[%emt 0:00:05]} Nf6 {[%emt 0:
00:10]} 3. Nf3 {[%emt 0:00:00]} g6 {[%emt 0:00:00]} 4. g3 {[%emt 0:00:08]} Bg7
{[%emt 0:00:00]} 5. Bg2 {[%emt 0:00:00]} d6 {[%emt 0:00:00]} 6. O-O {[%emt 0:
00:00]} O-O {[%emt 0:00:00]} 7. Nc3 {[%emt 0:00:00]} c6 {[%emt 0:00:03]} 8. d5
{[%emt 0:00:00]} e5 {[%emt 0:00:00]} 9. dxe6 {[%emt 0:00:04]} Bxe6 {[%emt 0:00:
05]} 10. Qd3 {[%emt 0:00:11]} Re8 {[%emt 0:00:17]} 11. Ng5 {[%emt 0:00:07]} Na6
{[%emt 0:00:03]} 12. Nxe6 {[%emt 0:00:48]} Rxe6 {[%emt 0:00:05]} 13. Qc2 {
[%emt 0:03:02]} Qe7 {[%emt 0:00:45]} 14. Rb1 {[%emt 0:00:44]} Nc5 {[%emt 0:00:
18]} 15. b4 {[%emt 0:00:16]} Nce4 {[%emt 0:00:59]} 16. Nxe4 {[%emt 0:00:10]}
Nxe4 {[%emt 0:00:09]} 17. Bb2 {[%emt 0:00:14]} Re8 {[%emt 0:00:28]} 18. Bxg7 {
[%emt 0:00:52]} Qxg7 {[%emt 0:00:11]} 19. Rb3 {[%emt 0:01:48]} h5 {[%emt 0:01:
43]} 20. Rd1 {[%emt 0:01:21]} Qf6 {[%emt 0:02:59]} 21. e3 {[%emt 0:04:42]} h4 {
[%emt 0:00:44]} 22. b5 {[%emt 0:00:48]} R8e7 {[%emt 0:03:28]} 23. bxc6 {
[%emt 0:00:19]} bxc6 {[%emt 0:00:00]} 24. Rb8+ {[%emt 0:00:48]} Kg7 {[%emt 0:
00:00]} 25. Qb2 {[%emt 0:01:24]} Qxb2 {[%emt 0:01:52]} 26. Rxb2 {[%emt 0:00:06]
} Kf6 {[%emt 0:00:24]} 27. Bxe4 {[%emt 0:00:49]} fxe4 {[%emt 0:00:03]} 28. gxh4
{[%emt 0:00:31]} Ke5 {[%emt 0:00:26]} 29. Rbd2 {[%emt 0:00:10]} Rh7 {[%emt 0:
00:17]} 30. Rd4 {[%emt 0:00:04]} Rf6 {[%emt 0:00:57]} 31. R1d2 {[%emt 0:00:20]}
Rb7 {[%emt 0:00:17]} 32. Kg2 {[%emt 0:00:08]} Rh7 {[%emt 0:00:34]} 33. Kg1 {
[%emt 0:00:18]} Rb7 {[%emt 0:00:00]} 34. Kg2 {[%emt 0:00:01]} Rh7 {[%emt 0:00:
26]} 35. Kg1 {[%emt 0:00:04]} Rb7 {[%emt 0:00:58]} 36. Kg2 {[%emt 0:00:08]} Rb1
{[%emt 0:00:47]} 37. h3 {[%emt 0:00:07]} Rb7 {[%emt 0:00:12]} 38. Kg3 {[%emt 0:
00:08]} Rf3+ {[%emt 0:00:13]} 39. Kg2 {[%emt 0:00:21]} Rf6 {[%emt 0:00:00]} 40.
Kg3 {[%emt 0:00:03]} Rf3+ {[%emt 0:00:03]} 41. Kg2 {[%emt 0:00:27]} 1/2-1/2

[Event "RUS-ch Rapid 2021"]
[Site "Sochi"]
[Date "2021.10.12"]
[Round "5.23"]
[White "Murzin, Volodar"]
[Black "Truskavetsky, Alexandr"]
[Result "1-0"]
[ECO "B31"]
[WhiteElo "2513"]
[BlackElo "2371"]
[Annotator "ChessBase"]
[PlyCount "65"]
[EventDate "2021.10.12"]
[EventType "swiss"]
[EventCountry "RUS"]
[SourceTitle "playchess.com"]
[Source "ChessBase"]
[SourceQuality "1"]
[TimeControl "900+10"]

1. e4 {[%emt 0:00:00]} c5 {[%emt 0:00:12]} 2. Nf3 {[%emt 0:00:02]} Nc6 {
[%emt 0:00:02]} 3. Bb5 {[%emt 0:00:12]} g6 {[%emt 0:00:11]} 4. Bxc6 {[%emt 0:
00:00]} dxc6 {[%emt 0:00:10]} 5. d3 {[%emt 0:00:00]} Bg7 {[%emt 0:00:02]} 6. h3
{[%emt 0:01:04]} Nf6 {[%emt 0:00:13]} 7. Nc3 {[%emt 0:00:04]} Nd7 {[%emt 0:00:
10]} 8. O-O {[%emt 0:00:08]} e5 {[%emt 0:00:07]} 9. Be3 {[%emt 0:00:14]} Qe7 {
[%emt 0:00:06]} 10. a4 {[%emt 0:00:17]} Nf8 {[%emt 0:00:37]} 11. a5 {[%emt 0:
00:01]} Ne6 {[%emt 0:00:07]} 12. Nd2 {[%emt 0:01:14]} O-O {[%emt 0:00:29]} 13.
Re1 {[%emt 0:00:32]} Nd4 {[%emt 0:02:45]} 14. Na4 {[%emt 0:01:08]} Rb8 {
[%emt 0:00:33]} 15. c3 {[%emt 0:00:55]} Ne6 {[%emt 0:00:22]} 16. Nc4 {[%emt 0:
01:04]} Rd8 {[%emt 0:02:38]} 17. Qe2 {[%emt 0:01:48]} Nf4 {[%emt 0:00:54]} 18.
Bxf4 {[%emt 0:00:13]} exf4 {[%emt 0:00:00]} 19. e5 {[%emt 0:00:02]} Be6 {
[%emt 0:02:10]} 20. Nd6 {[%emt 0:00:30]} Rxd6 {[%emt 0:00:15]} 21. exd6 {
[%emt 0:00:13]} Qxd6 {[%emt 0:00:00]} 22. c4 {[%emt 0:01:04]} Rd8 {[%emt 0:01:
20]} 23. Nc3 {[%emt 0:00:05]} Bd4 {[%emt 0:00:18]} 24. a6 {[%emt 0:00:16]} b6 {
[%emt 0:00:08]} 25. Qf3 {[%emt 0:00:15]} Rb8 {[%emt 0:01:22]} 26. Re4 {[%emt 0:
01:17]} b5 {[%emt 0:03:20]} 27. cxb5 {[%emt 0:03:18]} cxb5 {[%emt 0:00:02]} 28.
Ra5 {[%emt 0:01:18]} Qd7 {[%emt 0:00:39]} 29. Qxf4 {[%emt 0:01:20]} Rb6 {
[%emt 0:00:04]} 30. Rxd4 {[%emt 0:00:58]} cxd4 {[%emt 0:00:15]} 31. Ne4 {
[%emt 0:00:03]} Bf5 {[%emt 0:00:00]} 32. Nc5 {[%emt 0:00:00]} Qd5 {[%emt 0:00:
00]} 33. b4 {[%emt 0:00:09]} 1-0

[Event "RUS-ch Rapid 2021"]
[Site "Sochi"]
[Date "2021.10.12"]
[Round "5.24"]
[White "Kukhmazov, Arsen"]
[Black "Romanov, Kirill"]
[Result "1-0"]
[ECO "A70"]
[WhiteElo "2472"]
[BlackElo "2023"]
[Annotator "ChessBase"]
[PlyCount "55"]
[EventDate "2021.10.12"]
[EventType "swiss"]
[EventCountry "RUS"]
[SourceTitle "playchess.com"]
[Source "ChessBase"]
[SourceQuality "1"]
[TimeControl "900+10"]

1. d4 {[%emt 0:00:00]} Nf6 {[%emt 0:00:04]} 2. c4 {[%emt 0:00:02]} c5 {[%emt 0:
00:00]} 3. d5 {[%emt 0:00:05]} e6 {[%emt 0:00:00]} 4. Nc3 {[%emt 0:00:00]} exd5
{[%emt 0:00:00]} 5. cxd5 {[%emt 0:00:02]} d6 {[%emt 0:00:02]} 6. Nf3 {[%emt 0:
00:00]} g6 {[%emt 0:00:06]} 7. Bf4 {[%emt 0:00:00]} Bg7 {[%emt 0:00:00]} 8.
Qa4+ {[%emt 0:00:04]} Bd7 {[%emt 0:00:00]} 9. Qb3 {[%emt 0:00:00]} Qc7 {
[%emt 0:00:05]} 10. e4 {[%emt 0:00:00]} O-O {[%emt 0:00:00]} 11. Nd2 {[%emt 0:
00:02]} Re8 {[%emt 0:00:18]} 12. Be2 {[%emt 0:00:19]} Ng4 {[%emt 0:02:11]} 13.
Bxg4 {[%emt 0:01:06]} Bxc3 {[%emt 0:00:10]} 14. Qxc3 {[%emt 0:00:18]} Bxg4 {
[%emt 0:00:04]} 15. Qg3 {[%emt 0:01:53]} Bd7 {[%emt 0:03:14]} 16. O-O {[%emt 0:
00:57]} Bb5 {[%emt 0:00:15]} 17. Bxd6 {[%emt 0:01:16]} Qb6 {[%emt 0:00:24]} 18.
Rfe1 {[%emt 0:00:17]} Nd7 {[%emt 0:00:16]} 19. e5 {[%emt 0:00:23]} Rac8 {
[%emt 0:02:39]} 20. Ne4 {[%emt 0:01:03]} Bc4 {[%emt 0:00:15]} 21. Qh3 {[%emt 0:
00:38]} Bxd5 {[%emt 0:01:53]} 22. Qxd7 {[%emt 0:04:32]} Bxe4 {[%emt 0:00:06]}
23. Rxe4 {[%emt 0:00:00]} Rcd8 {[%emt 0:00:03]} 24. Qa4 {[%emt 0:00:03]} Qxb2 {
[%emt 0:00:18]} 25. Rae1 {[%emt 0:00:00]} b5 {[%emt 0:00:12]} 26. Qxa7 {
[%emt 0:00:40]} Rxd6 {[%emt 0:00:06]} 27. exd6 {[%emt 0:00:00]} Rxe4 {[%emt 0:
00:01]} 28. Qa8+ {[%emt 0:00:00]} 1-0

[Event "RUS-ch Rapid 2021"]
[Site "Sochi"]
[Date "2021.10.13"]
[Round "6.1"]
[White "Sarana, Alexey"]
[Black "Tsydypov, Zhamsaran"]
[Result "1/2-1/2"]
[ECO "D37"]
[WhiteElo "2649"]
[BlackElo "2526"]
[Annotator "RC"]
[PlyCount "141"]
[EventDate "2021.10.12"]
[EventType "swiss"]
[EventCountry "RUS"]
[SourceTitle "playchess.com"]
[Source "ChessBase"]
[SourceQuality "1"]
[TimeControl "900+10"]

1. d4 {[%emt 0:00:00]} d5 {[%emt 0:00:15]} 2. c4 {[%emt 0:00:01]} e6 {[%emt 0:
00:00]} 3. Nf3 {[%emt 0:00:00]} Nf6 {[%emt 0:00:01]} 4. Nc3 {[%emt 0:00:09]}
Be7 {[%emt 0:00:05]} 5. Bf4 {[%emt 0:00:00]} O-O {[%emt 0:00:11]} 6. a3 {
[%emt 0:00:18]} Nbd7 {[%emt 0:00:29]} 7. Nb5 {[%emt 0:00:11]} Ne8 {[%emt 0:00:
09]} 8. e3 {[%emt 0:00:04]} c6 {[%emt 0:03:13]} 9. Nc3 {[%emt 0:00:00]} f5 {
[%emt 0:01:23]} 10. h4 {[%emt 0:02:40]} Nd6 {[%emt 0:00:09]} 11. c5 {[%emt 0:
02:07]} Ne4 {[%emt 0:00:00]} 12. Ng5 {[%emt 0:00:02]} Nxg5 {[%emt 0:01:06]} 13.
hxg5 {[%emt 0:00:00]} Bxg5 {[%emt 0:00:04]} 14. Qh5 {[%emt 0:01:32]} h6 {
[%emt 0:00:10]} 15. Bd3 {[%emt 0:00:51]} Bxf4 {[%emt 0:01:09]} 16. exf4 {
[%emt 0:00:02]} Qf6 {[%emt 0:00:49]} 17. Ne2 {[%emt 0:00:45]} b6 {[%emt 0:00:
00]} 18. cxb6 {[%emt 0:00:57]} axb6 {[%emt 0:01:15]} 19. Rc1 {[%emt 0:00:00]}
c5 {[%emt 0:00:12]} 20. Bb5 {[%emt 0:00:00]} cxd4 {[%emt 0:02:28]} 21. Rxc8 {
[%emt 0:00:37]} Raxc8 {[%emt 0:00:06]} 22. Bxd7 {[%emt 0:00:00]} d3 {[%emt 0:
00:31]} 23. Bxc8 {[%emt 0:00:43]} Rxc8 {[%emt 0:00:00]} 24. O-O {[%emt 0:00:03]
} dxe2 {[%emt 0:00:07]} 25. Qxe2 {[%emt 0:00:03]} Qe7 {[%emt 0:01:03]} 26. Re1
{[%emt 0:00:06]} Rc6 {[%emt 0:00:10]} 27. b4 {[%emt 0:00:25]} Qd6 {[%emt 0:00:
26]} 28. g3 {[%emt 0:01:00]} d4 {[%emt 0:00:04]} 29. Rd1 {[%emt 0:00:26]} Qd5 {
[%emt 0:00:10]} 30. a4 {[%emt 0:00:04]} Rc4 {[%emt 0:00:25]} 31. Qd2 {[%emt 0:
01:21]} Qf3 {[%emt 0:01:08]} 32. a5 {[%emt 0:00:42]} Rxb4 {[%emt 0:01:03]} 33.
axb6 {[%emt 0:00:03]} Qc3 {[%emt 0:01:07]} 34. b7 {[%emt 0:01:06]} Qxd2 {
[%emt 0:00:29]} 35. Rxd2 {[%emt 0:00:00]} Rxb7 {[%emt 0:00:07]} 36. Rxd4 {
[%emt 0:00:00]} Kf7 {[%emt 0:00:01]} 37. Kg2 {[%emt 0:00:06]} Kf6 {[%emt 0:00:
00]} 38. Ra4 {[%emt 0:00:02]} g5 {[%emt 0:00:16]} 39. fxg5+ {[%emt 0:00:02]}
hxg5 {[%emt 0:00:06]} 40. Ra6 {[%emt 0:01:34]} Rb3 {[%emt 0:00:10]} 41. Rc6 {
[%emt 0:00:02]} Rd3 {[%emt 0:00:05]} 42. Ra6 {[%emt 0:00:00]} Rd4 {[%emt 0:00:
19]} 43. Kf3 {[%emt 0:00:05]} Re4 {[%emt 0:00:04]} 44. Kg2 {[%emt 0:00:05]} Re1
{[%emt 0:00:13]} 45. Kf3 {[%emt 0:00:01]} g4+ {[%emt 0:00:09]} 46. Kg2 {
[%emt 0:00:01]} Kg5 {[%emt 0:00:14]} 47. Ra8 {[%emt 0:00:01]} e5 {[%emt 0:00:
16]} 48. Rg8+ {[%emt 0:00:05]} Kf6 {[%emt 0:00:00]} 49. Rf8+ {[%emt 0:00:02]}
Ke6 {[%emt 0:00:00]} 50. Kh2 {[%emt 0:00:00]} Rd1 {[%emt 0:00:25]} 51. Kg2 {
[%emt 0:00:01]} Rd7 {[%emt 0:00:04]} 52. Ra8 {[%emt 0:00:10]} Kd5 {[%emt 0:00:
02]} 53. Ra1 {[%emt 0:00:32]} Rc7 {[%emt 0:00:15]} 54. Rd1+ {[%emt 0:00:05]}
Ke6 {[%emt 0:00:00]} 55. Ra1 {[%emt 0:00:00]} Rc2 {[%emt 0:00:08]} 56. Rd1 {
[%emt 0:00:18]} f4 {[%emt 0:00:19]} 57. gxf4 {[%emt 0:00:22]} exf4 {[%emt 0:00:
01]} 58. Kf1 {[%emt 0:00:57]} Kf5 {[%emt 0:00:07]} 59. Ra1 {[%emt 0:00:02]} Kg5
{[%emt 0:00:14]} 60. Ra8 {[%emt 0:01:30]} Rc1+ {[%emt 0:00:43]} 61. Kg2 {
[%emt 0:00:00]} f3+ {[%emt 0:00:16]} 62. Kh2 {[%emt 0:00:02]} Rf1 {[%emt 0:00:
13]} 63. Rg8+ {[%emt 0:00:02]} Kf5 {[%emt 0:00:01]} 64. Rf8+ {[%emt 0:00:10]}
Ke5 {[%emt 0:00:05]} 65. Re8+ {[%emt 0:00:02]} Kd4 {[%emt 0:00:15]} 66. Kg3 {
[%emt 0:00:17]} Rg1+ {[%emt 0:00:07]} 67. Kf4 {[%emt 0:00:01]} Kd3 {[%emt 0:00:
22]} 68. Re7 {[%emt 0:01:09]} Kd2 {[%emt 0:00:08]} 69. Re3 {[%emt 0:00:09]} g3
{[%emt 0:00:38]} 70. Rxf3 {[%emt 0:00:21]} gxf2 {[%emt 0:00:06]} 71. Ke4 {
[%emt 0:00:03]} 1/2-1/2

[Event "RUS-ch Rapid 2021"]
[Site "Sochi"]
[Date "2021.10.13"]
[Round "6.3"]
[White "Alekseev, Evgeny"]
[Black "Moiseenko, Vadim"]
[Result "1/2-1/2"]
[ECO "B67"]
[WhiteElo "2602"]
[BlackElo "2542"]
[Annotator "RC"]
[PlyCount "105"]
[EventDate "2021.10.12"]
[EventType "swiss"]
[EventCountry "RUS"]
[SourceTitle "playchess.com"]
[Source "ChessBase"]
[SourceQuality "1"]
[TimeControl "900+10"]

1. e4 {[%emt 0:00:00]} c5 {[%emt 0:00:04]} 2. Nf3 {[%emt 0:00:02]} Nc6 {
[%emt 0:00:00]} 3. d4 {[%emt 0:00:42]} cxd4 {[%emt 0:00:00]} 4. Nxd4 {[%emt 0:
00:02]} Nf6 {[%emt 0:00:10]} 5. Nc3 {[%emt 0:00:02]} d6 {[%emt 0:00:00]} 6. Bg5
{[%emt 0:00:12]} e6 {[%emt 0:00:04]} 7. Qd2 {[%emt 0:00:43]} a6 {[%emt 0:00:00]
} 8. O-O-O {[%emt 0:01:06]} Bd7 {[%emt 0:00:05]} 9. f3 {[%emt 0:00:29]} Be7 {
[%emt 0:01:38]} 10. h4 {[%emt 0:01:11]} h6 {[%emt 0:00:25]} 11. Be3 {[%emt 0:
00:08]} h5 {[%emt 0:00:02]} 12. Bg5 {[%emt 0:00:46]} Rc8 {[%emt 0:00:34]} 13.
Kb1 {[%emt 0:00:15]} Ne5 {[%emt 0:01:12]} 14. Bd3 {[%emt 0:00:14]} b5 {[%emt 0:
00:18]} 15. Nce2 {[%emt 0:00:08]} Qb6 {[%emt 0:00:56]} 16. Nb3 {[%emt 0:00:40]}
O-O {[%emt 0:01:41]} 17. Nf4 {[%emt 0:02:09]} Nc4 {[%emt 0:01:29]} 18. Qe1 {
[%emt 0:01:16]} Rfe8 {[%emt 0:00:28]} 19. c3 {[%emt 0:00:28]} a5 {[%emt 0:02:
46]} 20. Bxf6 {[%emt 0:00:53]} Bxf6 {[%emt 0:00:07]} 21. Nxh5 {[%emt 0:00:00]}
a4 {[%emt 0:01:37]} 22. Nxf6+ {[%emt 0:00:36]} gxf6 {[%emt 0:00:01]} 23. Bxc4 {
[%emt 0:01:01]} bxc4 {[%emt 0:02:30]} 24. Qg3+ {[%emt 0:00:00]} Kf8 {[%emt 0:
00:16]} 25. Qxd6+ {[%emt 0:00:54]} Qxd6 {[%emt 0:00:00]} 26. Rxd6 {[%emt 0:00:
04]} axb3 {[%emt 0:01:07]} 27. Rxd7 {[%emt 0:00:03]} bxa2+ {[%emt 0:00:00]} 28.
Kxa2 {[%emt 0:00:24]} Rc5 {[%emt 0:00:03]} 29. Rhd1 {[%emt 0:01:00]} Rb8 {
[%emt 0:00:09]} 30. Rd8+ {[%emt 0:00:20]} Rxd8 {[%emt 0:00:02]} 31. Rxd8+ {
[%emt 0:00:10]} Ke7 {[%emt 0:00:02]} 32. Rd4 {[%emt 0:00:01]} Rc8 {[%emt 0:00:
47]} 33. g4 {[%emt 0:00:28]} f5 {[%emt 0:00:09]} 34. exf5 {[%emt 0:00:10]} exf5
{[%emt 0:00:00]} 35. Rf4 {[%emt 0:00:19]} fxg4 {[%emt 0:00:05]} 36. fxg4 {
[%emt 0:00:00]} f6 {[%emt 0:00:07]} 37. g5 {[%emt 0:01:17]} fxg5 {[%emt 0:00:
02]} 38. hxg5 {[%emt 0:00:10]} Ke6 {[%emt 0:00:44]} 39. g6 {[%emt 0:00:00]} Ke5
{[%emt 0:00:00]} 40. Rf7 {[%emt 0:00:46]} Ra8+ {[%emt 0:00:11]} 41. Kb1 {
[%emt 0:00:02]} Ra6 {[%emt 0:00:06]} 42. g7 {[%emt 0:00:12]} Rg6 {[%emt 0:00:
00]} 43. Ra7 {[%emt 0:00:27]} Kd5 {[%emt 0:00:25]} 44. Ka2 {[%emt 0:00:05]} Kc5
{[%emt 0:00:10]} 45. Ka3 {[%emt 0:00:29]} Kb5 {[%emt 0:01:16]} 46. Ka2 {
[%emt 0:00:00]} Rg1 {[%emt 0:00:27]} 47. Rf7 {[%emt 0:00:01]} Kc5 {[%emt 0:00:
29]} 48. Rf5+ {[%emt 0:00:07]} Kc6 {[%emt 0:00:00]} 49. Rf7 {[%emt 0:00:07]}
Kc5 {[%emt 0:00:03]} 50. Ra7 {[%emt 0:00:12]} Kb6 {[%emt 0:00:14]} 51. Rd7 {
[%emt 0:00:08]} Kc6 {[%emt 0:00:11]} 52. Re7 {[%emt 0:00:18]} Kd6 {[%emt 0:00:
17]} 53. Rf7 {[%emt 0:00:32]} 1/2-1/2

[Event "RUS-ch Rapid 2021"]
[Site "Sochi"]
[Date "2021.10.13"]
[Round "6.6"]
[White "Riazantsev, Alexander"]
[Black "Murzin, Volodar"]
[Result "1-0"]
[ECO "B12"]
[WhiteElo "2634"]
[BlackElo "2513"]
[Annotator "RC"]
[PlyCount "57"]
[EventDate "2021.10.12"]
[EventType "swiss"]
[EventCountry "RUS"]
[SourceTitle "playchess.com"]
[Source "ChessBase"]
[SourceQuality "1"]
[TimeControl "900+10"]

1. e4 {[%emt 0:00:04]} c6 {[%emt 0:00:00]} 2. d4 {[%emt 0:00:03]} d5 {[%emt 0:
00:01]} 3. e5 {[%emt 0:00:00]} Bf5 {[%emt 0:00:07]} 4. h4 {[%emt 0:00:00]} h5 {
[%emt 0:00:01]} 5. Bd3 {[%emt 0:00:01]} Bxd3 {[%emt 0:00:00]} 6. Qxd3 {[%emt 0:
00:07]} Qa5+ {[%emt 0:00:00]} 7. Nd2 {[%emt 0:00:06]} e6 {[%emt 0:00:05]} 8.
Ngf3 {[%emt 0:00:09]} Nh6 {[%emt 0:00:00]} 9. O-O {[%emt 0:00:03]} Nf5 {
[%emt 0:00:06]} 10. Nb3 {[%emt 0:00:00]} Qb5 {[%emt 0:00:11]} 11. Qd1 {[%emt 0:
00:09]} c5 {[%emt 0:00:20]} 12. a4 {[%emt 0:01:25]} Qb6 {[%emt 0:00:05]} 13.
dxc5 {[%emt 0:02:16]} Bxc5 {[%emt 0:00:00]} 14. Nxc5 {[%emt 0:00:14]} Qxc5 {
[%emt 0:00:00]} 15. c3 {[%emt 0:00:03]} Nc6 {[%emt 0:00:24]} 16. Re1 {[%emt 0:
00:32]} O-O {[%emt 0:07:16]} 17. Bg5 {[%emt 0:03:24]} Qb6 {[%emt 0:06:47]} 18.
b4 {[%emt 0:02:12]} Qc7 {[%emt 0:00:40]} 19. Rc1 {[%emt 0:02:55]} f6 {[%emt 0:
01:49]} 20. exf6 {[%emt 0:02:53]} gxf6 {[%emt 0:00:00]} 21. Rxe6 {[%emt 0:00:
10]} fxg5 {[%emt 0:00:02]} 22. Qxd5 {[%emt 0:00:00]} Kh8 {[%emt 0:00:29]} 23.
hxg5 {[%emt 0:01:53]} Rad8 {[%emt 0:00:10]} 24. Qe4 {[%emt 0:00:00]} Ncd4 {
[%emt 0:00:15]} 25. Nxd4 {[%emt 0:00:18]} Rxd4 {[%emt 0:00:08]} 26. Rh6+ {
[%emt 0:00:07]} Kg7 {[%emt 0:00:07]} 27. Qe6 {[%emt 0:00:02]} Rd6 {[%emt 0:00:
23]} 28. Qe5+ {[%emt 0:00:05]} Kg8 {[%emt 0:00:07]} 29. Rh8+ {[%emt 0:00:00]}
1-0